bitfinex/quotes_SOLUSD_20250212
["timestamp","ask_amount","ask_price","bid_price","bid_amount"]
[1739330755954,0.03,195.87,195.85,0.25098]
[1739330756966,4.6249,195.87,195.85,0.25098]
[1739330757172,25.07223545,195.86,195.77,25.07223545]
[1739330757346,25.07223545,195.83,195.76,25.07223545]
[1739330757549,25.07223545,195.83,195.77,13.91380853]
[1739330757749,4.596,195.82,195.77,13.91380853]
[1739330757956,4.596,195.82,195.77,38.98604398]
[1739330758378,4.596,195.82,195.77,13.91380853]
[1739330758566,25.07223545,195.79,195.73,75.20534342]
[1739330758945,25.07223545,195.79,195.74,0.50196]
[1739330759480,25.07223545,195.77,195.74,0.50196]
[1739330759680,29.67013545,195.75,195.73,73.69964342]
[1739330761978,25.07223545,195.74,195.73,73.69964342]
[1739330762182,25.07223545,195.74,195.61,25.07223545]
[1739330762472,25.07223545,195.67,195.64,0.50196]
[1739330762876,25.07223545,195.68,195.64,0.50196]
[1739330763780,25.07223545,195.67,195.6,31.73433545]
[1739330763960,25.07223545,195.65,195.58,25.07223545]
[1739330764160,25.07223545,195.65,195.59,13.91380853]
[1739330765866,25.07223545,195.64,195.59,13.91380853]
[1739330766386,25.07223545,195.63,195.59,13.91380853]
[1739330766882,25.07223545,195.61,195.56,0.063]
[1739330767061,25.07223545,195.61,195.57,13.91380853]
[1739330768155,25.07223545,195.62,195.57,13.91380853]
[1739330768377,25.07223545,195.63,195.57,13.91380853]
[1739330769554,25.07223545,195.64,195.57,38.98604398]
[1739330769760,29.67253545,195.64,195.57,38.98604398]
[1739330770184,25.07223545,195.63,195.57,13.91380853]
[1739330770990,29.67293545,195.63,195.57,13.91380853]
[1739330771294,29.67293545,195.63,195.57,38.98604398]
[1739330771583,29.67293545,195.63,195.57,39.04904398]
[1739330771958,29.67293545,195.63,195.57,13.97680853]
[1739330772375,29.67293545,195.63,195.57,39.04904398]
[1739330773287,25.07223545,195.63,195.57,39.04904398]
[1739330773580,25.07223545,195.64,195.57,39.04904398]
[1739330774084,25.07223545,195.65,195.6,0.25098]
[1739330774295,4.5995,195.67,195.61,25.32321545]
[1739330774797,25.07223545,195.63,195.57,25.13523545]
[1739330774962,25.07223545,195.62,195.57,0.063]
[1739330775161,25.07223545,195.62,195.59,0.25098]
[1739330776388,25.07223545,195.6,195.57,0.063]
[1739330776689,25.07223545,195.59,195.57,0.31398]
[1739330777060,25.07223545,195.58,195.57,0.063]
[1739330778268,25.07223545,195.6,195.57,0.063]
[1739330778465,25.07223545,195.61,195.57,0.063]
[1739330778665,25.07223545,195.62,195.57,0.063]
[1739330778878,25.07223545,195.62,195.57,0.31398]
[1739330779080,25.07223545,195.63,195.57,0.31398]
[1739330779370,25.07223545,195.61,195.57,0.31398]
[1739330779589,25.07223545,195.6,195.57,0.31398]
[1739330779771,25.07223545,195.61,195.57,0.31398]
[1739330779983,25.07223545,195.6,195.57,0.063]
[1739330780280,4.6014,195.59,195.57,0.063]
[1739330780668,25.07223545,195.58,195.57,0.063]
[1739330782490,29.67383545,195.58,195.57,0.063]
[1739330785571,40.32689808,195.58,195.57,0.063]
[1739330785790,15.72529808,195.57,195.56,0.063]
[1739330786593,20.32719808,195.57,195.56,0.063]
[1739330787576,29.75205047,195.57,195.56,0.063]
[1739330789193,25.15015047,195.6,195.56,0.063]
[1739330789997,25.15015047,195.61,195.56,0.063]
[1739330790902,29.75115047,195.61,195.56,0.063]
[1739330791697,25.15015047,195.62,195.56,25.58962047]
[1739330791996,29.75085047,195.63,195.56,25.58962047]
[1739330792303,25.15015047,195.62,195.56,0.43947]
[1739330793598,4.6009,195.61,195.56,0.43947]
[1739330793812,25.15015047,195.62,195.56,0.43947]
[1739330794189,4.6004,195.64,195.58,0.12549]
[1739330794380,4.6004,195.64,195.59,25.40113047]
[1739330794578,29.74965047,195.68,195.61,25.40113047]
[1739330794779,4.5993,195.69,195.64,0.25098]
[1739330795083,29.74905047,195.7,195.64,0.25098]
[1739330797487,4.5989,195.7,195.66,0.25098]
[1739330798509,25.15015047,195.72,195.66,0.25098]
[1739330798893,25.15015047,195.73,195.66,25.40113047]
[1739330800308,4.5984,195.72,195.66,25.40113047]
[1739330801401,25.15015047,195.73,195.67,13.66282853]
[1739330801606,25.15015047,195.74,195.69,0.25098]
[1739330802108,25.15015047,195.73,195.69,0.25098]
[1739330802283,25.15015047,195.74,195.69,0.25098]
[1739330803309,25.15015047,195.73,195.69,0.25098]
[1739330803904,4.5984,195.72,195.69,0.25098]
[1739330805210,25.15015047,195.7,195.63,26.75645047]
[1739330805513,25.15015047,195.7,195.64,13.91380853]
[1739330806386,25.15015047,195.71,195.64,39.063959]
[1739330806592,4.5988,195.7,195.64,39.063959]
[1739330807685,4.5988,195.7,195.64,13.91380853]
[1739330807686,20.29571421,195.7,195.64,13.91380853]
[1739330809115,4.5988,195.7,195.67,0.25098]
[1739330810313,15.69691421,195.69,195.63,17.30321421]
[1739330810514,15.69691421,195.69,195.64,13.91380853]
[1739330810712,4.5993,195.68,195.64,13.91380853]
[1739330812313,4.5993,195.68,195.64,0.50196]
[1739330812513,15.69691421,195.65,195.63,1.6063]
[1739330812814,15.69691421,195.69,195.64,0.25098]
[1739330813013,15.69691421,195.71,195.66,0.25098]
[1739330813409,15.69691421,195.69,195.66,0.25098]
[1739330813719,16.0949,195.72,195.66,0.25098]
[1739330813720,15.69691421,195.68,195.66,0.25098]
[1739330813900,15.69691421,195.69,195.66,0.25098]
[1739330814600,4.5993,195.68,195.66,0.25098]
[1739330817304,15.69691421,195.69,195.66,0.25098]
[1739330817512,4.5991,195.69,195.66,0.25098]
[1739330818435,0.03,195.69,195.68,0.25098]
[1739330819925,0.03,195.69,195.68,0.50196]
[1739330820397,0.03,195.69,195.63,17.30321421]
[1739330820598,0.03,195.69,195.64,0.12549]
[1739330821031,0.03,195.69,195.64,13.91380853]
[1739330821802,4.6291,195.69,195.64,29.61072274]
[1739330822601,0.03,195.69,195.64,13.91380853]
[1739330822813,15.72691421,195.69,195.64,0.25098]
[1739330823013,15.72691421,195.69,195.63,1.6063]
[1739330823014,15.69691421,195.66,195.63,1.6063]
[1739330823325,15.69691421,195.68,195.63,1.6063]
[1739330824328,0.03,195.69,195.64,0.50196]
[1739330824623,4.6293,195.69,195.64,16.19887421]
[1739330824802,15.69691421,195.66,195.59,17.23071421]
[1739330825219,15.69691421,195.66,195.6,13.91380853]
[1739330825815,15.69691421,195.65,195.6,0.50196]
[1739330826016,15.69691421,195.64,195.59,1.5338]
[1739330826211,4.6007,195.62,195.59,1.5338]
[1739330826416,4.6007,195.62,195.57,20.0]
[1739330826417,15.69691421,195.61,195.57,20.0]
[1739330826630,15.69691421,195.61,195.58,0.12549]
[1739330827030,15.69691421,195.63,195.58,13.91380853]
[1739330827213,4.6004,195.64,195.58,29.61072274]
[1739330827415,20.29701421,195.65,195.58,29.61072274]
[1739330827738,4.6001,195.65,195.61,0.12549]
[1739330828307,4.5996,195.67,195.63,0.12549]
[1739330828931,20.29651421,195.67,195.63,0.12549]
[1739330831926,15.69691421,195.66,195.61,6.5535]
[1739330832115,15.69691421,195.62,195.56,6.6165]
[1739330832312,15.69691421,195.61,195.56,6.6165]
[1739330832529,15.69691421,195.62,195.57,0.12549]
[1739330833618,15.69691421,195.63,195.57,0.12549]
[1739330833818,15.69691421,195.62,195.57,0.12549]
[1739330835036,15.69691421,195.63,195.57,0.12549]
[1739330837112,20.29761421,195.62,195.57,0.12549]
[1739330837313,15.69691421,195.6,195.56,6.6165]
[1739330838039,15.69691421,195.57,195.56,0.063]
[1739330839339,20.29881421,195.57,195.56,0.063]
[1739330841938,15.69691421,195.58,195.56,0.063]
[1739330842243,11.5018,195.62,195.56,0.063]
[1739330842244,4.6016,195.59,195.56,0.063]
[1739330842455,20.29801421,195.61,195.56,0.18849]
[1739330843015,20.29801421,195.61,195.56,0.063]
[1739330843254,15.69691421,195.57,195.56,0.063]
[1739330843748,15.69691421,195.58,195.56,0.063]
[1739330844120,15.69691421,195.57,195.56,0.063]
[1739330845139,20.29881421,195.57,195.56,0.063]
[1739330847833,20.29881421,195.57,195.56,0.0001]
[1739330848633,31.80361421,195.57,195.51,0.063]
[1739330848833,15.69691421,195.52,195.51,0.063]
[1739330849948,20.30001421,195.52,195.51,0.063]
[1739330851554,15.69691421,195.54,195.51,0.063]
[1739330851733,15.69691421,195.55,195.51,0.063]
[1739330852234,15.69691421,195.53,195.51,0.063]
[1739330853035,4.6031,195.52,195.51,0.063]
[1739330853548,20.29971421,195.54,195.51,0.063]
[1739330853735,14.66633013,195.54,195.51,0.063]
[1739330854544,10.06353013,195.53,195.51,0.063]
[1739330855053,10.06353013,195.52,195.51,0.063]
[1739330855257,14.66663013,195.52,195.51,0.063]
[1739330856252,4.6031,195.52,195.51,0.063]
[1739330856653,14.66663013,195.52,195.51,0.063]
[1739330857942,10.06353013,195.54,195.51,0.063]
[1739330858961,10.06353013,195.55,195.51,0.18849]
[1739330859149,4.6026,195.54,195.51,0.18849]
[1739330859352,14.66613013,195.54,195.51,0.18849]
[1739330860761,14.66613013,195.54,195.51,0.063]
[1739330860954,10.06353013,195.53,195.51,0.063]
[1739330861364,10.06353013,195.52,195.51,0.063]
[1739330863754,14.66663013,195.52,195.51,0.063]
[1739330867968,4.6031,195.52,195.51,0.063]
[1739330868475,14.66663013,195.52,195.51,0.063]
[1739330868680,4.6031,195.52,195.51,0.063]
[1739330869569,14.66663013,195.52,195.51,0.063]
[1739330870845,4.6324,195.55,195.51,0.063]
[1739330873062,10.06353013,195.53,195.51,0.063]
[1739330873262,10.06353013,195.52,195.51,0.063]
[1739330874167,14.66663013,195.52,195.51,0.063]
[1739330876963,4.6031,195.52,195.51,0.063]
[1739330878554,10.06353013,195.54,195.51,0.063]
[1739330878555,4.6028,195.54,195.51,0.063]
[1739330879747,4.6324,195.55,195.51,0.063]
[1739330880563,14.69593013,195.55,195.51,0.063]
[1739330880762,10.06353013,195.54,195.51,0.063]
[1739330881471,10.06353013,195.53,195.51,0.063]
[1739330881769,14.66663013,195.52,195.51,0.063]
[1739330882559,4.6031,195.52,195.51,0.063]
[1739330882866,4.6028,195.54,195.51,0.063]
[1739330883986,4.6324,195.55,195.51,0.063]
[1739330884591,0.03,195.55,195.52,10.06353013]
[1739330884755,0.03,195.55,195.53,1.6315]
[1739330886086,0.03,195.55,195.54,0.12549]
[1739330886258,0.03,195.55,195.54,13.91380853]
[1739330886863,0.03,195.55,195.54,23.97733866]
[1739330887179,0.03,195.55,195.54,30.17353866]
[1739330888781,0.03,195.55,195.54,35.28753866]
[1739330889262,0.03,195.55,195.54,30.17353866]
[1739330890681,0.03,195.55,195.54,35.28753866]
[1739330891391,0.03,195.55,195.54,30.17353866]
[1739330892696,0.03,195.55,195.54,35.28753866]
[1739330893068,4.6305,195.63,195.54,35.28753866]
[1739330893283,4.6305,195.63,195.61,0.12549]
[1739330893490,4.6305,195.63,195.59,13.78831853]
[1739330893797,4.6305,195.63,195.6,0.12549]
[1739330895262,0.03,195.63,195.6,0.12549]
[1739330896764,0.03,195.63,195.62,23.85184866]
[1739330898210,0.03,195.63,195.62,23.97733866]
[1739330898373,0.03,195.63,195.62,30.03353866]
[1739330898694,0.03,195.63,195.62,35.14543866]
[1739330899270,0.03,195.63,195.62,30.03353866]
[1739330900667,0.03,195.63,195.62,35.14543866]
[1739330903371,0.03,195.63,195.62,30.03353866]
[1739330906968,0.03,195.63,195.61,11.70653013]
[1739330907172,0.03,195.63,195.61,1.643]
[1739330907488,0.03,195.63,195.62,23.97733866]
[1739330912077,0.03,195.63,195.62,29.08923866]
[1739330914180,0.03,195.63,195.62,30.08923866]
[1739330917096,0.03,195.63,195.62,29.08923866]
[1739330917299,0.03,195.63,195.62,23.97733866]
[1739330922383,0.03,195.63,195.62,29.08923866]
[1739330922605,0.03,195.63,195.62,23.97733866]
[1739330922982,0.03,195.63,195.62,29.08923866]
[1739330923399,0.03,195.63,195.62,23.97733866]
[1739330928897,0.03,195.63,195.62,29.08923866]
[1739330929095,0.03,195.63,195.62,30.08923866]
[1739330929407,0.03,195.69,195.68,20.50196]
[1739330929606,0.03,195.69,195.68,43.97733866]
[1739330931618,0.03,195.69,195.68,49.08763866]
[1739330931820,0.03,195.69,195.68,90.94735918]
[1739330932195,0.03,195.69,195.68,45.58293866]
[1739330932520,0.03,195.69,195.68,50.69323866]
[1739330933418,0.03,195.69,195.68,45.58293866]
[1739330934614,0.03,195.75,195.69,13.91380853]
[1739330934912,0.03,195.76,195.75,19.02230853]
[1739330935213,0.03,195.76,195.75,13.91380853]
[1739330935724,0.03,195.76,195.75,23.97733866]
[1739330936026,0.03,195.76,195.75,13.91380853]
[1739330937104,0.03,195.76,195.72,10.06353013]
[1739330937496,0.03,195.76,195.68,8.1712]
[1739330937497,0.03,195.76,195.71,10.06353013]
[1739330937791,0.03,195.76,195.72,13.91380853]
[1739330937990,0.03,195.76,195.75,0.12549]
[1739330939993,0.03,195.76,195.7,10.06353013]
[1739330940197,0.03,195.76,195.64,7.98870343]
[1739330940198,10.06353013,195.75,195.69,10.06353013]
[1739330940399,10.06353013,195.75,195.7,0.50196]
[1739330940813,10.09353013,195.76,195.7,10.56549013]
[1739330941014,0.03,195.76,195.73,0.12549]
[1739330941898,0.03,195.76,195.73,10.18902013]
[1739330942094,0.03,195.76,195.75,13.91380853]
[1739330942415,0.03,195.76,195.75,23.97733866]
[1739330943589,14.21863013,195.86,195.79,13.91380853]
[1739330943793,14.21863013,195.86,195.82,0.12549]
[1739330944607,25.70633013,195.86,195.79,23.47537866]
[1739330944813,10.06353013,195.85,195.78,10.06353013]
[1739330945014,10.06353013,195.85,195.79,13.91380853]
[1739330945722,31.31769683,195.86,195.79,29.58870536]
[1739330946821,31.31769683,195.86,195.83,0.12549]
[1739330946822,4.1551,195.86,195.83,0.12549]
[1739330948112,4.6248,195.87,195.83,0.12549]
[1739330949116,4.6248,195.87,195.83,13.53733853]
[1739330949324,4.6248,195.87,195.85,0.12549]
[1739330949907,4.6248,195.87,195.82,13.41184853]
[1739330950116,4.6248,195.87,195.83,0.50196]
[1739330950512,20.29969683,195.87,195.8,15.67489683]
[1739330950814,15.67489683,195.86,195.8,15.67489683]
[1739330951024,15.67489683,195.86,195.81,0.50196]
[1739330951221,4.5953,195.85,195.81,0.50196]
[1739330951400,20.27019683,195.85,195.81,0.50196]
[1739330952104,4.5953,195.85,195.81,0.50196]
[1739330952409,4.5953,195.85,195.81,16.17685683]
[1739330953103,4.5951,195.86,195.83,0.50196]
[1739330953314,0.03,195.87,195.83,0.50196]
[1739330953807,15.70489683,195.87,195.83,0.50196]
[1739330954503,0.03,195.87,195.83,0.50196]
[1739330955227,4.5951,195.86,195.83,0.50196]
[1739330955620,15.67489683,195.85,195.83,0.50196]
[1739330955817,4.5951,195.86,195.83,0.50196]
[1739330956029,4.6248,195.87,195.83,0.50196]
[1739330956536,0.03,195.87,195.86,0.12549]
[1739330956904,0.03,195.87,195.86,29.21223536]
[1739330957104,0.03,195.87,195.86,29.58870536]
[1739330965720,0.03,195.87,195.84,15.67489683]
[1739330966014,0.03,195.87,195.85,0.50196]
[1739330966236,0.03,195.87,195.85,0.12549]
[1739330966441,4.6248,195.87,195.85,0.12549]
[1739330966835,0.03,195.87,195.85,29.21223536]
[1739330967017,0.03,195.87,195.85,13.53733853]
[1739330967422,0.03,195.87,195.82,15.67489683]
[1739330967643,0.03,195.87,195.81,10.02815024]
[1739330967817,0.03,195.87,195.85,0.12549]
[1739330967818,10.05815024,195.87,195.85,0.12549]
[1739330968422,4.5951,195.86,195.85,0.12549]
[1739330970254,0.03,195.87,195.86,0.37647]
[1739330970415,0.03,195.87,195.86,13.91380853]
[1739330971029,0.03,195.87,195.86,23.94195877]
[1739330971224,0.03,195.87,195.86,13.91380853]
[1739330973637,0.03,195.87,195.86,0.12549]
[1739330973820,0.03,195.87,195.81,10.09115024]
[1739330974331,0.03,195.87,195.83,0.50196]
[1739330974531,0.03,195.87,195.83,10.53011024]
[1739330974841,0.03,195.87,195.86,0.12549]
[1739330980024,0.03,195.87,195.86,13.53733853]
[1739330981151,0.03,195.87,195.86,0.063]
[1739330985967,4.6248,195.87,195.86,0.063]
[1739330986263,14.65295024,195.87,195.86,0.063]
[1739330988857,4.6248,195.87,195.86,0.063]
[1739330991068,14.65295024,195.87,195.86,0.063]
[1739330992252,14.65295024,195.87,195.86,0.0001]
[1739330994770,30.00295024,195.87,195.81,0.063]
[1739330994941,10.02815024,195.82,195.81,0.063]
[1739330996161,14.62415024,195.82,195.81,0.063]
[1739330996675,14.62415024,195.82,195.77,0.12549]
[1739330996980,14.62415024,195.82,195.71,7.8238]
[1739330996981,10.02815024,195.78,195.71,7.8238]
[1739330997282,10.02815024,195.74,195.68,7.98870343]
[1739330997480,10.02815024,195.74,195.7,13.78831853]
[1739330997763,10.02815024,195.74,195.7,0.37647]
[1739330998156,10.02815024,195.74,195.71,0.12549]
[1739330998667,10.02815024,195.75,195.71,0.12549]
[1739330999446,10.02815024,195.75,195.73,0.18849]
[1739330999682,10.02815024,195.76,195.73,0.18849]
[1739331000574,10.02815024,195.75,195.73,0.18849]
[1739331000779,10.02815024,195.74,195.73,0.063]
[1739331002284,10.02815024,195.77,195.73,0.063]
[1739331002582,138.1,195.81,195.76,0.12549]
[1739331002583,10.02815024,195.8,195.76,0.12549]
[1739331002747,4.596,195.82,195.78,0.12549]
[1739331002950,10.02815024,195.83,195.8,0.12549]
[1739331003156,4.5957,195.84,195.8,0.12549]
[1739331003875,14.62385024,195.84,195.8,0.12549]
[1739331004073,4.5957,195.84,195.81,0.37647]
[1739331004275,4.5951,195.86,195.82,0.12549]
[1739331004861,14.62325024,195.86,195.82,0.12549]
[1739331005080,10.02815024,195.84,195.82,0.12549]
[1739331005586,10.02815024,195.83,195.82,0.12549]
[1739331005755,15.67607701,195.83,195.81,0.12549]
[1739331005955,15.67607701,195.84,195.81,0.12549]
[1739331006180,4.5958,195.83,195.81,0.12549]
[1739331006878,4.5958,195.83,195.75,5.1085]
[1739331006879,15.67607701,195.82,195.74,17.26077701]
[1739331007091,15.67607701,195.8,195.75,13.91380853]
[1739331008356,20.27267701,195.8,195.75,13.91380853]
[1739331008873,15.67607701,195.76,195.75,0.50196]
[1739331009093,15.67607701,195.76,195.73,0.063]
[1739331009252,15.67607701,195.74,195.73,0.063]
[1739331010598,20.27397701,195.74,195.73,0.063]
[1739331010896,15.67607701,195.68,195.67,64.15930373]
[1739331011758,15.67607701,195.68,195.64,7.98870343]
[1739331011961,15.67607701,195.65,195.57,15.66380343]
[1739331012174,16.67607701,195.7,195.57,15.66380343]
[1739331012175,15.67607701,195.61,195.58,13.91380853]
[1739331012371,15.67607701,195.61,195.58,13.66282853]
[1739331012569,20.27717701,195.61,195.59,0.12549]
[1739331012885,20.27717701,195.61,195.59,0.50196]
[1739331013258,15.67607701,195.6,195.59,0.12549]
[1739331014582,4.6014,195.59,195.57,7.98870343]
[1739331014768,15.67607701,195.58,195.57,7.98870343]
[1739331015171,15.67607701,195.58,195.55,0.063]
[1739331015361,15.67607701,195.56,195.55,0.063]
[1739331016078,20.27747701,195.59,195.55,0.063]
[1739331016593,15.67607701,195.56,195.55,0.063]
[1739331017258,15.67607701,195.56,195.55,0.0001]
[1739331018698,21.27817701,195.56,195.55,0.0001]
[1739331019163,21.27817701,195.56,195.53,0.0001]
[1739331019363,21.27817701,195.56,195.51,0.0001]
[1739331019364,35.67607701,195.54,195.51,0.0001]
[1739331019574,15.67607701,195.52,195.51,0.0001]
[1739331019772,15.67607701,195.52,195.48,0.0001]
[1739331019773,20.0,195.49,195.48,0.0001]
[1739331019979,15.67607701,195.49,195.48,0.0001]
[1739331020577,20.27987701,195.49,195.48,0.0001]
[1739331020793,40.27987701,195.49,195.48,0.0001]
[1739331022186,20.27987701,195.49,195.48,0.0001]
[1739331023892,3.30944731,195.55,195.48,0.0001]
[1739331023893,15.67607701,195.5,195.48,0.0001]
[1739331024082,7.0511,195.56,195.48,0.0001]
[1739331024083,4.092,195.51,195.48,0.0001]
[1739331024590,15.67607701,195.52,195.48,0.12559]
[1739331024790,4.0914,195.53,195.48,15.80166701]
[1739331025170,19.76747701,195.53,195.48,0.12559]
[1739331026090,15.67607701,195.51,195.48,0.0001]
[1739331026595,15.67607701,195.5,195.48,0.0001]
[1739331028593,19.76827701,195.49,195.48,0.0001]
[1739331030893,19.76807701,195.51,195.48,0.12559]
[1739331031096,4.092,195.51,195.48,0.12559]
[1739331031300,4.0916,195.53,195.5,0.12549]
[1739331031882,15.67607701,195.52,195.48,0.0001]
[1739331032083,15.67607701,195.49,195.48,0.0001]
[1739331032286,15.67607701,195.5,195.46,5.898]
[1739331032489,19.76767701,195.53,195.47,16.17803701]
[1739331032789,19.76767701,195.53,195.5,0.12549]
[1739331032790,4.0916,195.53,195.5,0.12549]
[1739331032995,19.76767701,195.53,195.47,15.67607701]
[1739331033194,19.76767701,195.53,195.46,21.57407701]
[1739331033377,4.0916,195.53,195.5,0.12549]
[1739331035305,15.67607701,195.52,195.46,21.57407701]
[1739331035508,19.76767701,195.53,195.47,0.50196]
[1739331035709,19.76767701,195.53,195.47,16.17803701]
[1739331035894,4.0916,195.53,195.47,16.17803701]
[1739331036093,4.0916,195.53,195.5,0.12549]
[1739331036499,15.67607701,195.56,195.52,0.12549]
[1739331036686,4.0911,195.55,195.52,0.12549]
[1739331037009,4.1206,195.57,195.52,0.12549]
[1739331037401,0.03,195.57,195.54,0.12549]
[1739331037604,0.03,195.57,195.56,0.12549]
[1739331037800,0.03,195.57,195.56,0.50196]
[1739331038012,0.03,195.57,195.52,29.08792554]
[1739331038182,15.67607701,195.56,195.49,15.67607701]
[1739331038388,15.67607701,195.56,195.52,0.50196]
[1739331038904,0.03,195.57,195.55,0.12549]
[1739331040220,15.70607701,195.57,195.5,15.67607701]
[1739331040394,15.67607701,195.56,195.5,15.67607701]
[1739331040708,15.67607701,195.56,195.52,0.50196]
[1739331041022,4.091,195.55,195.49,15.67607701]
[1739331041186,15.67607701,195.53,195.47,15.67607701]
[1739331041396,15.67607701,195.53,195.48,13.91380853]
[1739331041620,19.76707701,195.55,195.48,29.58988554]
[1739331041788,19.76707701,195.55,195.51,0.12549]
[1739331042600,15.67607701,195.54,195.48,29.08792554]
[1739331042787,15.67607701,195.51,195.46,7.5334]
[1739331042995,15.67607701,195.51,195.47,13.91380853]
[1739331043213,4.092,195.5,195.47,13.91380853]
[1739331043916,4.092,195.5,195.47,0.50196]
[1739331044223,19.76807701,195.5,195.47,0.50196]
[1739331045505,19.76807701,195.5,195.47,0.12549]
[1739331045695,15.67607701,195.49,195.46,0.063]
[1739331045894,15.67607701,195.47,195.46,0.063]
[1739331046599,15.67607701,195.47,195.4,0.063]
[1739331046799,15.67607701,195.42,195.4,0.063]
[1739331047218,15.67607701,195.41,195.4,0.063]
[1739331047524,19.76997701,195.41,195.4,0.063]
[1739331049123,139.1,195.48,195.4,0.18849]
[1739331049124,15.67607701,195.45,195.4,0.18849]
[1739331049337,35.67607701,195.45,195.4,0.18849]
[1739331049618,39.76927701,195.45,195.4,0.18849]
[1739331050121,4.0932,195.45,195.4,0.18849]
[1739331050721,19.76927701,195.45,195.4,0.18849]
[1739331052330,15.67607701,195.43,195.4,0.063]
[1739331052504,15.67607701,195.41,195.4,0.063]
[1739331054498,19.76997701,195.41,195.4,0.063]
[1739331058215,4.0939,195.41,195.4,0.063]
[1739331058413,24.0939,195.41,195.4,0.063]
[1739331059522,4.0939,195.41,195.4,0.063]
[1739331060020,4.0937,195.43,195.4,0.063]
[1739331060407,4.0937,195.43,195.4,0.18849]
[1739331061429,19.76977701,195.43,195.4,0.18849]
[1739331061610,4.0937,195.43,195.4,0.18849]
[1739331062822,4.0932,195.45,195.42,0.12549]
[1739331064338,4.1227,195.47,195.44,15.80156701]
[1739331064626,4.1227,195.47,195.44,0.50196]
[1739331065327,0.03,195.47,195.44,0.50196]
[1739331065525,0.03,195.47,195.46,16.05254701]
[1739331065829,0.03,195.47,195.46,0.37647]
[1739331066213,0.03,195.47,195.46,13.91380853]
[1739331066418,0.03,195.47,195.46,29.58988554]
[1739331067413,0.03,195.47,195.46,0.50196]
[1739331067933,0.03,195.47,195.46,29.58988554]
[1739331069127,0.03,195.47,195.46,35.71298554]
[1739331069334,0.03,195.47,195.46,40.82908554]
[1739331069629,0.03,195.47,195.46,42.45818554]
[1739331070637,0.03,195.47,195.46,37.34208554]
[1739331071815,0.03,195.47,195.46,42.45818554]
[1739331073131,0.03,195.53,195.49,13.53733853]
[1739331073335,0.03,195.53,195.52,29.21341554]
[1739331073530,0.03,195.53,195.52,13.53733853]
[1739331074328,0.03,195.53,195.52,0.12549]
[1739331075347,0.03,195.53,195.49,29.46439554]
[1739331075348,15.70607701,195.53,195.49,0.37647]
[1739331075511,15.70607701,195.53,195.5,0.12549]
[1739331077117,4.0916,195.52,195.46,23.42827701]
[1739331077324,15.67607701,195.51,195.46,7.7522]
[1739331077632,15.67607701,195.51,195.47,0.50196]
[1739331078348,29.99677701,195.52,195.47,0.50196]
[1739331079626,19.76767701,195.52,195.47,0.50196]
[1739331083447,29.99677701,195.52,195.47,0.50196]
[1739331083645,15.67607701,195.48,195.42,15.67607701]
[1739331083816,15.67607701,195.49,195.43,13.91380853]
[1739331084220,15.67607701,195.5,195.43,29.58988554]
[1739331084932,14.3214,195.51,195.48,0.12549]
[1739331084933,4.0918,195.51,195.48,0.12549]
[1739331085550,19.76787701,195.51,195.48,0.12549]
[1739331086143,19.76787701,195.51,195.47,0.37647]
[1739331086144,15.67607701,195.5,195.43,15.67607701]
[1739331086320,15.67607701,195.49,195.42,15.67607701]
[1739331086517,4.0918,195.51,195.43,13.91380853]
[1739331086518,15.67607701,195.48,195.43,13.91380853]
[1739331086718,15.67607701,195.44,195.4,0.063]
[1739331086937,15.67607701,195.42,195.4,0.063]
[1739331087138,15.67607701,195.42,195.4,0.18849]
[1739331087749,19.76997701,195.41,195.4,0.063]
[1739331093121,19.76997701,195.41,195.4,0.0001]
[1739331095631,4.0939,195.41,195.4,0.0001]
[1739331096322,138.1,195.43,195.4,0.0001]
[1739331096524,15.67607701,195.46,195.4,15.80166701]
[1739331097452,19.76927701,195.45,195.4,0.12559]
[1739331098451,4.0932,195.45,195.42,0.12549]